[Event "Vladimir Bato Kontic Memorial 2021"]
[Site "Niksic"]
[Date "2021.04.19"]
[Round "5.8"]
[White "Plenca, Jadranko"]
[Black "Krivokapic, Marko"]
[Result "0-1"]
[ECO "B51"]
[WhiteElo "2472"]
[BlackElo "2380"]
[Annotator "ChessBase"]
[PlyCount "176"]
[EventDate "2021.04.17"]
[EventType "swiss"]
[EventCountry "MNE"]
[SourceTitle "playchess.com"]
[Source "ChessBase"]
[SourceQuality "1"]
[TimeControl "40/5400+30:1800+30"]

1. e4 {[%emt 0:03:11]} c5 {[%emt 0:00:00]} 2. Nf3 {[%emt 0:00:11]} d6 {[%emt 0:00:00]} 3. Bb5+ {[%emt 0:00:04]} Nd7 {[%emt 0:00:19]} 4. c3 {[%emt 0:00:40]} Ngf6 {[%emt 0:00:35]} 5. Qe2 {[%emt 0:00:10]} a6 {[%emt 0:02:39]} 6. Ba4 {[%emt 0:02:10]} Qc7 {[%emt 0:00:15]} 7. Bc2 {[%emt 0:01:51]} e6 {[%emt 0:05:04]} 8. d4 {[%emt 0:04:53]} cxd4 {[%emt 0:05:16]} 9. cxd4 {[%emt 0:00:12]} b5 {[%emt 0:01:09]} 10. a4 {[%emt 0:01:09]} b4 {[%emt 0:13:24]} 11. b3 {[%emt 0:00:07]} Bb7 {[%emt 0:00:32]} 12. Bb2 {[%emt 0:01:31]} Be7 {[%emt 0:05:23]} 13. O-O {[%emt 0:02:35]} O-O {[%emt 0:09:35]} 14. Bd3 {[%emt 0:02:51]} Rfc8 {[%emt 0:07:33]} 15. Nbd2 {[%emt 0:00:35]} a5 {[%emt 0:04:02]} 16. Rac1 {[%emt 0:00:44]} Qd8 {[%emt 0:01:21]} 17. Rcd1 {[%emt 0:10:49]} Nf8 {[%emt 0:02:14]} 18. g3 {[%emt 0:03:33]} Qb6 {[%emt 0:07:17]} 19. Nc4 {[%emt 0:02:19]} Qd8 {[%emt 0:00:45]} 20. d5 {[%emt 0:00:56]} exd5 {[%emt 0:05:30]} 21. exd5 {[%emt 0:00:05]} Nxd5 {[%emt 0:04:24]} 22. Be4 {[%emt 0:01:18]} Nc3 {[%emt 0:00:45]} 23. Bxc3 {[%emt 0:03:29]} Bxe4 {[%emt 0:00:09]} 24. Qxe4 {[%emt 0:09:21]} bxc3 {[%emt 0:00:09]} 25. Rd5 {[%emt 0:00:58]} Nd7 {[%emt 0:04:01]} 26. Qe3 {[%emt 0:02:29]} Nf6 {[%emt 0:00:46]} 27. Rb5 {[%emt 0:00:28]} Ra6 {[%emt 0:04:13]} 28. Qd3 {[%emt 0:02:22]} d5 {[%emt 0:00:45]} 29. Ne3 {[%emt 0:00:11]} Rb6 {[%emt 0:02:22]} 30. Nd4 {[%emt 0:00:29]} Bb4 {[%emt 0:02:11]} 31. Rd1 {[%emt 0:02:17]} Rxb5 {[%emt 0:04:22]} 32. axb5 {[%emt 0:02:11]} Qb6 {[%emt 0:01:17]} 33. Nc6 {[%emt 0:00:29]} Qc5 {[%emt 0:00:29]} 34. Qf5 {[%emt 0:02:40]} Re8 {[%emt 0:00:47]} 35. Qd3 {[%emt 0:03:25]} g6 {[%emt 0:01:10]} 36. Qe2 {[%emt 0:01:59]} Re6 {[%emt 0:01:20]} 37. Qf3 {[%emt 0:00:53]} Kg7 {[%emt 0:01:33]} 38. Nd4 {[%emt 0:02:35]} Re4 {[%emt 0:00:28]} 39. Nec2 {[%emt 0:01:01]} h5 {[%emt 0:01:04]} 40. Kg2 {[%emt 0:00:00]} Nd7 {[%emt 0:00:00]} 41. Nf5+ {[%emt 0:18:56]} gxf5 {[%emt 0:19:30]} 42. Qxf5 {[%emt 0:00:05]} Ne5 {[%emt 0:04:02]} 43. Qg5+ {[%emt 0:00:05]} Ng6 {[%emt 0:01:34]} 44. Rxd5 {[%emt 0:00:05]} Qe7 {[%emt 0:00:54]} 45. Qxh5 {[%emt 0:00:06]} Rh4 {[%emt 0:01:13]} 46. Qf3 {[%emt 0:00:18]} Rf4 {[%emt 0:01:17]} 47. Qd3 {[%emt 0:00:16]} Qe4+ {[%emt 0:01:07]} 48. Qxe4 {[%emt 0:00:17]} Rxe4 {[%emt 0:00:07]} 49. b6 {[%emt 0:00:03]} Re7 {[%emt 0:01:43]} 50. Rb5 {[%emt 0:00:30]} Rb7 {[%emt 0:00:37]} 51. Kf3 {[%emt 0:00:17]} Ne7 {[%emt 0:00:27]} 52. Ke2 {[%emt 0:01:29]} Nc6 {[%emt 0:00:52]} 53. f4 {[%emt 0:05:55]} Rd7 {[%emt 0:00:48]} 54. Ke3 {[%emt 0:00:15]} Rd2 {[%emt 0:02:26]} 55. Nxb4 {[%emt 0:00:06]} axb4 {[%emt 0:00:09]} 56. b7 {[%emt 0:00:06]} Rd7 {[%emt 0:01:36]} 57. Rb6 {[%emt 0:00:19]} Nb8 {[%emt 0:03:40]} 58. Rxb4 {[%emt 0:00:04]} c2 {[%emt 0:01:01]} 59. Rc4 {[%emt 0:00:04]} Rxb7 {[%emt 0:00:04]} 60. Rxc2 {[%emt 0:00:35]} Rxb3+ {[%emt 0:00:04]} 61. Kf2 {[%emt 0:00:13]} Nd7 {[%emt 0:00:07]} 62. g4 {[%emt 0:00:19]} Nf6 {[%emt 0:00:11]} 63. g5 {[%emt 0:00:16]} Ng4+ {[%emt 0:00:10]} 64. Ke1 {[%emt 0:00:44]} Rf3 {[%emt 0:00:29]} 65. Rc4 {[%emt 0:01:04]} Nxh2 {[%emt 0:01:17]} 66. Ke2 {[%emt 0:00:07]} Rh3 {[%emt 0:00:39]} 67. f5 {[%emt 0:00:09]} Nf3 {[%emt 0:01:37]} 68. g6 {[%emt 0:00:05]} Ne5 {[%emt 0:00:31]} 69. Rc7 {[%emt 0:00:12]} Kf6 {[%emt 0:00:32]} 70. gxf7 {[%emt 0:00:06]} Nxf7 {[%emt 0:00:05]} 71. Rc4 {[%emt 0:00:39]} Kxf5 {[%emt 0:00:07]} 72. Ra4 {[%emt 0:00:19]} Nd6 {[%emt 0:00:13]} 73. Ra8 {[%emt 0:00:52]} Kf4 {[%emt 0:00:31]} 74. Rf8+ {[%emt 0:00:14]} Nf5 {[%emt 0:00:06]} 75. Rf7 {[%emt 0:00:03]} Ke4 {[%emt 0:00:08]} 76. Kf2 {[%emt 0:00:14]} Rh2+ {[%emt 0:00:09]} 77. Kg1 {[%emt 0:00:07]} Rc2 {[%emt 0:00:17]} 78. Kf1 {[%emt 0:00:42]} Rh2 {[%emt 0:01:29]} 79. Kg1 {[%emt 0:03:10]} Rb2 {[%emt 0:01:37]} 80. Kf1 {[%emt 0:00:05]} Ne3+ {[%emt 0:00:18]} 81. Kg1 {[%emt 0:00:08]} Ng4 {[%emt 0:00:41]} 82. Rf8 {[%emt 0:00:30]} Ke3 {[%emt 0:00:38]} 83. Kh1 {[%emt 0:01:12]} Rd2 {[%emt 0:00:21]} 84. Rf5 {[%emt 0:01:27]} Nh2 {[%emt 0:00:26]} 85. Re5+ {[%emt 0:01:49]} Kf4 {[%emt 0:00:12]} 86. Re1 {[%emt 0:00:07]} Nf3 {[%emt 0:00:05]} 87. Re4+ {[%emt 0:00:04]} Kg5 {[%emt 0:00:37]} 88. Rg4+ {[%emt 0:00:06]} Kh5 {[%emt 0:00:10]} 0-1

[Event "Vladimir Bato Kontic Memorial 2021"]
[Site "Niksic"]
[Date "2021.04.19"]
[Round "5.10"]
[White "Sukovic, Andrej"]
[Black "Sahin, Ozgun"]
[Result "0-1"]
[ECO "B33"]
[WhiteElo "2283"]
[BlackElo "2281"]
[Annotator "ChessBase"]
[PlyCount "88"]
[EventDate "2021.04.17"]
[EventType "swiss"]
[EventCountry "MNE"]
[SourceTitle "playchess.com"]
[Source "ChessBase"]
[SourceQuality "1"]
[TimeControl "40/5400+30:1800+30"]

1. e4 {[%emt 0:04:45]} c5 {[%emt 0:00:00]} 2. Nf3 {[%emt 0:00:05]} Nc6 {[%emt 0:00:00]} 3. d4 {[%emt 0:00:04]} cxd4 {[%emt 0:00:00]} 4. Nxd4 {[%emt 0:00:06]} Nf6 {[%emt 0:00:13]} 5. Nc3 {[%emt 0:00:06]} e5 {[%emt 0:00:18]} 6. Ndb5 {[%emt 0:02:16]} d6 {[%emt 0:00:08]} 7. Bg5 {[%emt 0:01:08]} a6 {[%emt 0:00:14]} 8. Na3 {[%emt 0:00:08]} b5 {[%emt 0:00:10]} 9. Nd5 {[%emt 0:00:15]} Be7 {[%emt 0:00:05]} 10. Bxf6 {[%emt 0:00:08]} Bxf6 {[%emt 0:00:05]} 11. c3 {[%emt 0:00:18]} Bg5 {[%emt 0:01:53]} 12. Nc2 {[%emt 0:00:24]} O-O {[%emt 0:01:22]} 13. g3 {[%emt 0:00:59]} Rb8 {[%emt 0:01:26]} 14. Bg2 {[%emt 0:09:58]} Ne7 {[%emt 0:05:19]} 15. Ncb4 {[%emt 0:00:40]} Bb7 {[%emt 0:01:15]} 16. Nxe7+ {[%emt 0:00:23]} Qxe7 {[%emt 0:01:53]} 17. O-O {[%emt 0:00:29]} g6 {[%emt 0:07:30]} 18. a3 {[%emt 0:13:48]} h5 {[%emt 0:09:11]} 19. Qd3 {[%emt 0:06:36]} h4 {[%emt 0:09:48]} 20. Rad1 {[%emt 0:09:41]} Rbd8 {[%emt 0:03:24]} 21. Qe2 {[%emt 0:00:14]} Qe6 {[%emt 0:04:29]} 22. Nd5 {[%emt 0:01:12]} hxg3 {[%emt 0:04:57]} 23. hxg3 {[%emt 0:05:17]} Kg7 {[%emt 0:01:26]} 24. f4 {[%emt 0:17:49]} exf4 {[%emt 0:01:55]} 25. gxf4 {[%emt 0:00:10]} Bh6 {[%emt 0:07:37]} 26. Qd3 {[%emt 0:03:45]} Bxd5 {[%emt 0:08:26]} 27. Qxd5 {[%emt 0:00:16]} Qg4 {[%emt 0:00:08]} 28. Qd4+ {[%emt 0:01:32]} f6 {[%emt 0:00:33]} 29. Qe3 {[%emt 0:00:25]} Rfe8 {[%emt 0:01:57]} 30. Rd5 {[%emt 0:02:04]} Re5 {[%emt 0:00:44]} 31. Qb6 {[%emt 0:13:17]} Rxd5 {[%emt 0:01:45]} 32. Qxd8 {[%emt 0:01:13]} Rd2 {[%emt 0:00:19]} 33. Qe7+ {[%emt 0:00:14]} Kg8 {[%emt 0:00:08]} 34. Qe8+ {[%emt 0:00:15]} Kh7 {[%emt 0:01:57]} 35. Qf7+ {[%emt 0:00:28]} Bg7 {[%emt 0:00:04]} 36. Rf2 {[%emt 0:00:09]} Rd1+ {[%emt 0:01:48]} 37. Rf1 {[%emt 0:00:41]} Rxf1+ {[%emt 0:00:02]} 38. Kxf1 {[%emt 0:00:11]} Qxf4+ {[%emt 0:00:06]} 39. Ke2 {[%emt 0:00:15]} Qg3 {[%emt 0:01:49]} 40. Bf3 {[%emt 0:00:00]} Qh2+ {[%emt 0:00:00]} 41. Kd3 {[%emt 0:21:26]} Qxb2 {[%emt 0:15:18]} 42. Qe6 {[%emt 0:00:55]} Qb1+ {[%emt 0:00:59]} 43. Kd4 {[%emt 0:02:21]} f5+ {[%emt 0:00:27]} 44. Kd5 {[%emt 0:00:06]} Qd3+ {[%emt 0:00:04]} 0-1

[Event "Vladimir Bato Kontic Memorial 2021"]
[Site "Niksic"]
[Date "2021.04.19"]
[Round "5.11"]
[White "Nikac, Predrag"]
[Black "Miletic, Vuk"]
[Result "1/2-1/2"]
[ECO "B72"]
[WhiteElo "2318"]
[BlackElo "2254"]
[Annotator "ChessBase"]
[PlyCount "72"]
[EventDate "2021.04.17"]
[EventType "swiss"]
[EventCountry "MNE"]
[SourceTitle "playchess.com"]
[Source "ChessBase"]
[SourceQuality "1"]
[TimeControl "40/5400+30:1800+30"]

1. e4 c5 2. Nf3 Nc6 3. d4 cxd4 4. Nxd4 g6 5. Nc3 Bg7 6. Be3 Nf6 7. Bc4 O-O 8. Bb3 d6 9. h3 Na5 10. O-O a6 11. f4 Nxb3 12. axb3 b5 13. b4 Bb7 14. Qd3 Rc8 15. Nb3 Qc7 16. Bd4 Nd7 17. Bxg7 Kxg7 18. Rf2 Nb6 19. Na5 Nc4 20. Nd5 Bxd5 21. exd5 Nxa5 22. Rxa5 Qc4 23. Qxc4 Rxc4 24. c3 Ra8 25. g4 Re4 26. Kg2 Re3 27. Rd2 Kf6 28. Ra1 g5 29. Rf1 gxf4 30. Rxf4+ Kg6 31. Rdf2 f6 32. R4f3 Re5 33. Rf5 Re3 34. h4 h6 35. R5f3 Re5 36. Rf5 Re3 1/2-1/2

[Event "Vladimir Bato Kontic Memorial 2021"]
[Site "Niksic"]
[Date "2021.04.20"]
[Round "6.1"]
[White "Suleymanli, Aydin"]
[Black "Niemann, Hans Moke"]
[Result "1/2-1/2"]
[ECO "D31"]
[WhiteElo "2520"]
[BlackElo "2508"]
[Annotator "ChessBase"]
[PlyCount "139"]
[EventDate "2021.04.17"]
[EventType "swiss"]
[EventCountry "MNE"]
[SourceTitle "playchess.com"]
[Source "ChessBase"]
[SourceQuality "1"]
[TimeControl "40/5400+30:1800+30"]

1. d4 {[%emt 0:02:59]} d5 {[%emt 0:00:00]} 2. c4 {[%emt 0:00:23]} e6 {[%emt 0:00:13]} 3. Nc3 {[%emt 0:00:21]} a6 {[%emt 0:00:11]} 4. cxd5 {[%emt 0:01:14]} exd5 {[%emt 0:00:09]} 5. Bf4 {[%emt 0:02:15]} Nf6 {[%emt 0:00:37]} 6. e3 {[%emt 0:00:44]} Bd6 {[%emt 0:01:44]} 7. Bg5 {[%emt 0:02:18]} Be6 {[%emt 0:01:09]} 8. Bd3 {[%emt 0:01:19]} Nbd7 {[%emt 0:07:18]} 9. Nge2 {[%emt 0:03:38]} h6 {[%emt 0:00:48]} 10. Bh4 {[%emt 0:00:55]} Qe7 {[%emt 0:02:19]} 11. f3 {[%emt 0:02:31]} c5 {[%emt 0:03:03]} 12. O-O {[%emt 0:03:20]} O-O {[%emt 0:00:22]} 13. Kh1 {[%emt 0:05:54]} Rfe8 {[%emt 0:03:00]} 14. f4 {[%emt 0:15:25]} Nb6 {[%emt 0:19:32]} 15. Ng3 {[%emt 0:07:23]} cxd4 {[%emt 0:00:55]} 16. exd4 {[%emt 0:02:01]} Qd8 {[%emt 0:00:16]} 17. Qf3 {[%emt 0:16:21]} Be7 {[%emt 0:00:32]} 18. f5 {[%emt 0:01:38]} Bd7 {[%emt 0:00:47]} 19. Rae1 {[%emt 0:00:21]} Bc6 {[%emt 0:00:41]} 20. Re2 {[%emt 0:01:27]} Qd6 {[%emt 0:02:22]} 21. Rfe1 {[%emt 0:03:11]} Bf8 {[%emt 0:00:28]} 22. Nh5 {[%emt 0:04:21]} Nxh5 {[%emt 0:02:38]} 23. Qxh5 {[%emt 0:00:36]} Rxe2 {[%emt 0:00:11]} 24. Qxe2 {[%emt 0:03:24]} Re8 {[%emt 0:00:14]} 25. Qf3 {[%emt 0:03:46]} Rxe1+ {[%emt 0:02:01]} 26. Bxe1 {[%emt 0:00:01]} Be7 {[%emt 0:00:18]} 27. Ne2 {[%emt 0:00:56]} Bf6 {[%emt 0:00:21]} 28. Qg3 {[%emt 0:00:48]} Qe7 {[%emt 0:00:40]} 29. Qb8+ {[%emt 0:01:31]} Kh7 {[%emt 0:00:17]} 30. Qg3 {[%emt 0:02:17]} Na4 {[%emt 0:02:24]} 31. Nf4 {[%emt 0:05:30]} Nxb2 {[%emt 0:00:39]} 32. Bc2 {[%emt 0:00:03]} Kh8 {[%emt 0:01:51]} 33. Bf2 {[%emt 0:01:59]} Bg5 {[%emt 0:04:41]} 34. Nh3 {[%emt 0:04:27]} Qe2 {[%emt 0:02:53]} 35. Nxg5 {[%emt 0:01:37]} hxg5 {[%emt 0:00:34]} 36. Bb3 {[%emt 0:00:01]} Qf1+ {[%emt 0:00:33]} 37. Bg1 {[%emt 0:00:01]} Qxf5 {[%emt 0:00:08]} 38. Qc3 {[%emt 0:01:29]} Nd3 {[%emt 0:08:07]} 39. Bc2 {[%emt 0:00:15]} Bb5 {[%emt 0:00:02]} 40. Qc7 {[%emt 0:00:00]} Kh7 {[%emt 0:00:00]} 41. Qxb7 {[%emt 0:19:34]} Kg6 {[%emt 0:16:34]} 42. Qc7 {[%emt 0:01:10]} Qe4 {[%emt 0:04:26]} 43. Qg3 {[%emt 0:02:17]} Qe2 {[%emt 0:00:46]} 44. Bxd3+ {[%emt 0:07:18]} Bxd3 {[%emt 0:00:17]} 45. h4 {[%emt 0:00:08]} g4 {[%emt 0:01:25]} 46. Kh2 {[%emt 0:03:19]} Be4 {[%emt 0:01:30]} 47. Qf2 {[%emt 0:00:16]} Qc4 {[%emt 0:00:56]} 48. a3 {[%emt 0:00:29]} f6 {[%emt 0:00:30]} 49. Qg3 {[%emt 0:00:43]} Bf5 {[%emt 0:00:58]} 50. Be3 {[%emt 0:00:28]} a5 {[%emt 0:00:22]} 51. Bf2 {[%emt 0:00:18]} a4 {[%emt 0:00:07]} 52. Be3 {[%emt 0:00:06]} Qe2 {[%emt 0:00:31]} 53. Bf2 {[%emt 0:00:22]} Be4 {[%emt 0:00:08]} 54. Qe3 {[%emt 0:01:15]} Qc2 {[%emt 0:01:00]} 55. Qg3 {[%emt 0:00:14]} Kf7 {[%emt 0:00:20]} 56. Kg1 {[%emt 0:00:25]} Bf5 {[%emt 0:00:08]} 57. Qf4 {[%emt 0:00:38]} Ke7 {[%emt 0:00:28]} 58. Bg3 {[%emt 0:00:37]} Qb1+ {[%emt 0:01:33]} 59. Kh2 {[%emt 0:00:01]} Kf7 {[%emt 0:00:41]} 60. Qc7+ {[%emt 0:00:57]} Kg6 {[%emt 0:00:37]} 61. h5+ {[%emt 0:00:01]} Kh7 {[%emt 0:00:32]} 62. Bf4 {[%emt 0:00:03]} g3+ {[%emt 0:00:31]} 63. Bxg3 {[%emt 0:00:18]} Qd1 {[%emt 0:00:08]} 64. Qf4 {[%emt 0:00:44]} Be4 {[%emt 0:01:01]} 65. Bf2 {[%emt 0:00:40]} Qxh5+ {[%emt 0:00:43]} 66. Qh4 {[%emt 0:00:07]} Kg6 {[%emt 0:01:21]} 67. g4 {[%emt 0:01:24]} Qxh4+ {[%emt 0:01:02]} 68. Bxh4 {[%emt 0:00:05]} Kh6 {[%emt 0:01:05]} 69. g5+ {[%emt 0:00:14]} fxg5 {[%emt 0:00:07]} 70. Be1 {[%emt 0:00:06]} 1/2-1/2

[Event "Vladimir Bato Kontic Memorial 2021"]
[Site "Niksic"]
[Date "2021.04.20"]
[Round "6.4"]
[White "Kisic, Bozidar"]
[Black "Runic, Zoran"]
[Result "1-0"]
[ECO "A45"]
[WhiteElo "2263"]
[BlackElo "2378"]
[Annotator "RC"]
[PlyCount "51"]
[EventDate "2021.04.17"]
[EventType "swiss"]
[EventCountry "MNE"]
[SourceTitle "playchess.com"]
[Source "ChessBase"]
[SourceQuality "1"]
[TimeControl "40/5400+30:1800+30"]

1. d4 {[%emt 0:04:54]} Nf6 {[%emt 0:00:02]} 2. Bg5 {[%emt 0:01:07]} e6 {[%emt 0:00:19]} 3. Nd2 {[%emt 0:00:08]} h6 {[%emt 0:02:28]} 4. Bh4 {[%emt 0:00:07]} c5 {[%emt 0:00:33]} 5. e4 {[%emt 0:00:09]} d5 {[%emt 0:04:13]} 6. e5 {[%emt 0:00:21]} g5 {[%emt 0:00:04]} 7. Bg3 {[%emt 0:00:09]} Ng8 {[%emt 0:02:48]} 8. h4 {[%emt 0:01:37]} Nc6 {[%emt 0:00:31]} 9. hxg5 {[%emt 0:07:09]} Nxd4 {[%emt 0:00:52]} 10. c3 {[%emt 0:07:50]} Nf5 {[%emt 0:01:36]} 11. Qg4 {[%emt 0:05:42]} Bg7 {[%emt 0:03:11]} 12. Ngf3 {[%emt 0:02:53]} Nge7 {[%emt 0:02:09]} 13. O-O-O {[%emt 0:06:41]} Bd7 {[%emt 0:02:37]} 14. Bd3 {[%emt 0:19:33]} Qb6 {[%emt 0:01:29]} 15. Bf4 {[%emt 0:03:38]} Rg8 {[%emt 0:10:43]} 16. Qh5 {[%emt 0:05:32]} Ng6 {[%emt 0:00:17]} 17. g3 {[%emt 0:01:37]} hxg5 {[%emt 0:10:08]} 18. Nxg5 {[%emt 0:04:31]} Nfe7 {[%emt 0:01:30]} 19. Nxf7 {[%emt 0:05:20]} Kxf7 {[%emt 0:00:10]} 20. Bxg6+ {[%emt 0:00:29]} Nxg6 {[%emt 0:00:21]} 21. Ne4 {[%emt 0:00:09]} Bf8 {[%emt 0:02:01]} 22. Nf6 {[%emt 0:04:33]} Be7 {[%emt 0:00:18]} 23. Qh7+ {[%emt 0:02:40]} Rg7 {[%emt 0:00:19]} 24. Qxg7+ {[%emt 0:00:19]} Kxg7 {[%emt 0:00:01]} 25. Rh7+ {[%emt 0:00:02]} Kf8 {[%emt 0:00:20]} 26. Bh6# {[%emt 0:00:05]} 1-0

[Event "Vladimir Bato Kontic Memorial 2021"]
[Site "Niksic"]
[Date "2021.04.20"]
[Round "6.9"]
[White "Tomic, Aleksandar"]
[Black "Potpara, Nikola"]
[Result "0-1"]
[ECO "E13"]
[WhiteElo "2377"]
[BlackElo "2370"]
[Annotator "RC"]
[PlyCount "142"]
[EventDate "2021.04.17"]
[EventType "swiss"]
[EventCountry "MNE"]
[SourceTitle "playchess.com"]
[Source "ChessBase"]
[SourceQuality "1"]
[TimeControl "40/5400+30:1800+30"]

1. d4 {[%emt 0:14:36]} Nf6 {[%emt 0:00:00]} 2. c4 {[%emt 0:00:08]} e6 {[%emt 0:00:00]} 3. Nc3 {[%emt 0:00:08]} Bb4 {[%emt 0:00:27]} 4. Nf3 {[%emt 0:00:19]} b6 {[%emt 0:01:43]} 5. Bg5 {[%emt 0:00:13]} Bb7 {[%emt 0:05:28]} 6. e3 {[%emt 0:00:16]} h6 {[%emt 0:00:17]} 7. Bh4 {[%emt 0:00:07]} g5 {[%emt 0:00:05]} 8. Bg3 {[%emt 0:00:04]} Ne4 {[%emt 0:00:03]} 9. Nd2 {[%emt 0:00:07]} Bxc3 {[%emt 0:02:18]} 10. bxc3 {[%emt 0:00:08]} Nxg3 {[%emt 0:00:02]} 11. hxg3 {[%emt 0:00:09]} d6 {[%emt 0:00:06]} 12. Rh2 {[%emt 0:00:06]} Nd7 {[%emt 0:01:19]} 13. Be2 {[%emt 0:00:10]} Qe7 {[%emt 0:06:56]} 14. Bf3 {[%emt 0:00:22]} c6 {[%emt 0:00:08]} 15. Qa4 {[%emt 0:03:30]} d5 {[%emt 0:00:29]} 16. cxd5 {[%emt 0:02:39]} exd5 {[%emt 0:01:42]} 17. c4 {[%emt 0:00:43]} Kf8 {[%emt 0:01:35]} 18. cxd5 {[%emt 0:01:39]} cxd5 {[%emt 0:00:07]} 19. Rc1 {[%emt 0:30:27]} Nf6 {[%emt 0:04:13]} 20. Nb1 {[%emt 0:05:52]} Kg7 {[%emt 0:03:02]} 21. Qa3 {[%emt 0:04:08]} Qd7 {[%emt 0:02:31]} 22. Bd1 {[%emt 0:01:57]} Rac8 {[%emt 0:17:34]} 23. Nc3 {[%emt 0:03:19]} a6 {[%emt 0:03:15]} 24. Na4 {[%emt 0:04:42]} Qb5 {[%emt 0:13:03]} 25. Nc3 {[%emt 0:00:44]} Qd3 {[%emt 0:00:36]} 26. Be2 {[%emt 0:02:50]} Qf5 {[%emt 0:02:51]} 27. f3 {[%emt 0:02:15]} Rhe8 {[%emt 0:02:25]} 28. Nd1 {[%emt 0:01:01]} Rxc1 {[%emt 0:03:12]} 29. Qxc1 {[%emt 0:00:44]} Rc8 {[%emt 0:00:02]} 30. Qb2 {[%emt 0:01:04]} b5 {[%emt 0:01:37]} 31. Kd2 {[%emt 0:05:18]} Qe6 {[%emt 0:00:53]} 32. Nf2 {[%emt 0:01:35]} Re8 {[%emt 0:06:40]} 33. Qb3 {[%emt 0:01:24]} Bc8 {[%emt 0:00:08]} 34. f4 {[%emt 0:04:28]} Bd7 {[%emt 0:03:05]} 35. Rh1 {[%emt 0:04:31]} b4 {[%emt 0:00:34]} 36. Rc1 {[%emt 0:03:25]} a5 {[%emt 0:06:04]} 37. Rc5 {[%emt 0:00:58]} a4 {[%emt 0:00:22]} 38. Qd3 {[%emt 0:00:09]} Rb8 {[%emt 0:00:38]} 39. Qb1 {[%emt 0:02:44]} b3 {[%emt 0:00:37]} 40. Rc3 {[%emt 0:00:00]} bxa2 {[%emt 0:00:00]} 41. Qxa2 {[%emt 0:16:00]} Rb4 {[%emt 0:25:06]} 42. Bd1 {[%emt 0:06:42]} Qb6 {[%emt 0:02:40]} 43. Bc2 {[%emt 0:00:26]} Qa5 {[%emt 0:02:44]} 44. Qa3 {[%emt 0:01:58]} Bb5 {[%emt 0:00:26]} 45. Kd1 {[%emt 0:02:22]} Bc4 {[%emt 0:02:10]} 46. Nd3 {[%emt 0:01:00]} Bxd3 {[%emt 0:04:25]} 47. Bxd3 {[%emt 0:00:33]} Qb6 {[%emt 0:00:33]} 48. Bc2 {[%emt 0:03:07]} g4 {[%emt 0:06:16]} 49. Ke1 {[%emt 0:01:34]} Qa5 {[%emt 0:01:50]} 50. Kd1 {[%emt 0:01:46]} Ne4 {[%emt 0:00:32]} 51. Bxe4 {[%emt 0:00:27]} dxe4 {[%emt 0:00:06]} 52. Rc5 {[%emt 0:00:33]} Rb1+ {[%emt 0:00:13]} 53. Rc1 {[%emt 0:00:31]} Rb3 {[%emt 0:00:07]} 54. Qc5 {[%emt 0:00:21]} Rb5 {[%emt 0:03:02]} 55. Qc8 {[%emt 0:00:35]} h5 {[%emt 0:00:13]} 56. Qc3 {[%emt 0:00:35]} Qxc3 {[%emt 0:00:46]} 57. Rxc3 {[%emt 0:00:01]} Rb2 {[%emt 0:00:07]} 58. Rc2 {[%emt 0:00:42]} Rb3 {[%emt 0:00:06]} 59. Kd2 {[%emt 0:00:20]} a3 {[%emt 0:00:18]} 60. Rc5 {[%emt 0:00:53]} a2 {[%emt 0:01:14]} 61. Ra5 {[%emt 0:00:12]} Rb2+ {[%emt 0:00:10]} 62. Kc3 {[%emt 0:00:14]} Rxg2 {[%emt 0:01:15]} 63. d5 {[%emt 0:00:31]} Rxg3 {[%emt 0:00:05]} 64. Rxa2 {[%emt 0:00:49]} Rxe3+ {[%emt 0:00:51]} 65. Kd4 {[%emt 0:00:08]} Re1 {[%emt 0:00:04]} 66. Ke5 {[%emt 0:00:50]} e3 {[%emt 0:00:27]} 67. d6 {[%emt 0:00:14]} Rd1 {[%emt 0:00:15]} 68. Re2 {[%emt 0:00:54]} Rd3 {[%emt 0:00:06]} 69. f5 {[%emt 0:00:28]} Kh6 {[%emt 0:01:14]} 70. Re1 {[%emt 0:00:43]} Kg5 {[%emt 0:00:16]} 71. Re2 {[%emt 0:00:25]} h4 {[%emt 0:00:07]} 0-1

[Event "Vladimir Bato Kontic Memorial 2021"]
[Site "Niksic"]
[Date "2021.04.20"]
[Round "7.2"]
[White "Niemann, Hans Moke"]
[Black "Kisic, Bozidar"]
[Result "1-0"]
[ECO "D32"]
[WhiteElo "2508"]
[BlackElo "2263"]
[Annotator "ChessBase"]
[PlyCount "111"]
[EventDate "2021.04.17"]
[EventType "swiss"]
[EventCountry "MNE"]
[SourceTitle "playchess.com"]
[Source "ChessBase"]
[SourceQuality "1"]
[TimeControl "40/5400+30:1800+30"]

1. d4 {[%emt 0:03:54]} d5 {[%emt 0:00:29]} 2. c4 {[%emt 0:00:19]} e6 {[%emt 0:00:07]} 3. Nc3 {[%emt 0:00:33]} c5 {[%emt 0:00:09]} 4. cxd5 {[%emt 0:01:38]} cxd4 {[%emt 0:00:08]} 5. Qa4+ {[%emt 0:01:22]} Bd7 {[%emt 0:00:56]} 6. Qxd4 {[%emt 0:00:24]} exd5 {[%emt 0:00:22]} 7. Qxd5 {[%emt 0:03:06]} Nc6 {[%emt 0:00:16]} 8. Bg5 {[%emt 0:03:21]} Nf6 {[%emt 0:03:39]} 9. Qd2 {[%emt 0:00:31]} h6 {[%emt 0:06:36]} 10. Bxf6 {[%emt 0:03:11]} Qxf6 {[%emt 0:05:35]} 11. Nd5 {[%emt 0:00:26]} Qd8 {[%emt 0:09:30]} 12. e4 {[%emt 0:00:22]} Be6 {[%emt 0:01:53]} 13. O-O-O {[%emt 0:05:11]} Bd6 {[%emt 0:13:26]} 14. Kb1 {[%emt 0:00:53]} O-O {[%emt 0:01:04]} 15. g3 {[%emt 0:00:39]} Qe8 {[%emt 0:10:39]} 16. Bg2 {[%emt 0:09:34]} Ne5 {[%emt 0:08:41]} 17. Rc1 {[%emt 0:00:12]} Qb5 {[%emt 0:09:13]} 18. Bf1 {[%emt 0:14:02]} Qa4 {[%emt 0:02:30]} 19. Bd3 {[%emt 0:00:37]} f5 {[%emt 0:08:47]} 20. Bc2 {[%emt 0:01:50]} Qb5 {[%emt 0:03:25]} 21. Qe2 {[%emt 0:01:58]} Qxe2 {[%emt 0:04:16]} 22. Nxe2 {[%emt 0:00:02]} fxe4 {[%emt 0:00:18]} 23. Ndf4 {[%emt 0:01:05]} Bc4 {[%emt 0:05:12]} 24. Rhd1 {[%emt 0:01:44]} Be7 {[%emt 0:01:11]} 25. Nc3 {[%emt 0:01:49]} Bg5 {[%emt 0:00:52]} 26. Bxe4 {[%emt 0:01:41]} Bxf4 {[%emt 0:00:11]} 27. gxf4 {[%emt 0:00:03]} Rxf4 {[%emt 0:00:12]} 28. Bxb7 {[%emt 0:00:11]} Rb8 {[%emt 0:00:55]} 29. Bd5+ {[%emt 0:00:05]} Bxd5 {[%emt 0:01:15]} 30. Rxd5 {[%emt 0:00:07]} Nc4 {[%emt 0:00:27]} 31. Rb5 {[%emt 0:00:27]} Rbf8 {[%emt 0:01:15]} 32. Rb7 {[%emt 0:01:18]} Nd2+ {[%emt 0:01:20]} 33. Ka1 {[%emt 0:00:58]} Rxf2 {[%emt 0:00:10]} 34. b4 {[%emt 0:01:18]} Rxh2 {[%emt 0:00:46]} 35. Rxa7 {[%emt 0:00:14]} Nc4 {[%emt 0:01:00]} 36. b5 {[%emt 0:01:13]} Rff2 {[%emt 0:00:37]} 37. Ra4 {[%emt 0:02:08]} Nb6 {[%emt 0:00:28]} 38. Rb4 {[%emt 0:00:02]} Rc2 {[%emt 0:01:10]} 39. Rxc2 {[%emt 0:00:20]} Rxc2 {[%emt 0:00:00]} 40. Na4 {[%emt 0:00:00]} Nc4 {[%emt 0:00:00]} 41. b6 {[%emt 0:16:59]} Rc1+ {[%emt 0:17:48]} 42. Rb1 {[%emt 0:00:13]} Rxb1+ {[%emt 0:00:24]} 43. Kxb1 {[%emt 0:00:01]} Na5 {[%emt 0:00:15]} 44. Kc2 {[%emt 0:03:23]} Kf7 {[%emt 0:10:27]} 45. Kc3 {[%emt 0:00:02]} h5 {[%emt 0:02:01]} 46. Kb4 {[%emt 0:00:34]} Nb7 {[%emt 0:01:07]} 47. Nc5 {[%emt 0:00:11]} Nd8 {[%emt 0:01:28]} 48. a4 {[%emt 0:00:17]} h4 {[%emt 0:00:36]} 49. a5 {[%emt 0:00:17]} h3 {[%emt 0:00:34]} 50. Ne4 {[%emt 0:00:12]} h2 {[%emt 0:00:36]} 51. Ng3 {[%emt 0:00:10]} Nc6+ {[%emt 0:00:37]} 52. Kb5 {[%emt 0:00:09]} Nd4+ {[%emt 0:00:32]} 53. Kc5 {[%emt 0:00:26]} Nb3+ {[%emt 0:00:30]} 54. Kb4 {[%emt 0:00:03]} Nd4 {[%emt 0:00:33]} 55. a6 {[%emt 0:00:03]} Ne2 {[%emt 0:00:29]} 56. Nh1 {[%emt 0:00:05]} 1-0